[Event "Late-Titled-Tuesday-Blitz-June-04-2024"]
[Site "Chess.com"]
[Date "2024.06.04"]
[Round "2"]
[White "TimGrutter03"]
[Black "mac0504"]
[Result "0-1"]
[WhiteElo "2523"]
[BlackElo "2749"]
[TimeControl "180+1"]
[EndTime "14:18:15 PDT"]
[Termination "mac0504 won by resignation"]

1. c4 {[%clk 0:03:00.9]} 1... b6 {[%clk 0:02:58.9]} 2. Nf3 {[%clk 0:02:59.2]}
2... Bb7 {[%clk 0:02:59.4]} 3. g3 {[%clk 0:02:59.8]} 3... Bxf3 {[%clk
0:02:58.4]} 4. exf3 {[%clk 0:03:00.5]} 4... c5 {[%clk 0:02:59.1]} 5. Bg2 {[%clk
0:03:00]} 5... Nc6 {[%clk 0:02:59.6]} 6. Nc3 {[%clk 0:02:56.9]} 6... e6 {[%clk
0:02:58.8]} 7. f4 {[%clk 0:02:55.1]} 7... Rc8 {[%clk 0:02:58.8]} 8. O-O {[%clk
0:02:53]} 8... g6 {[%clk 0:02:58.6]} 9. Re1 {[%clk 0:02:43.4]} 9... Bg7 {[%clk
0:02:57.9]} 10. Nb5 {[%clk 0:02:43.1]} 10... Qe7 {[%clk 0:02:48.8]} 11. Qa4
{[%clk 0:02:35.7]} 11... a5 {[%clk 0:02:38.7]} 12. Nc3 {[%clk 0:02:24]} 12...
Nf6 {[%clk 0:02:30.5]} 13. d3 {[%clk 0:01:58]} 13... O-O {[%clk 0:02:20.2]} 14.
Nb5 {[%clk 0:01:53.2]} 14... Ne8 {[%clk 0:02:05.7]} 15. Rb1 {[%clk 0:01:38.7]}
15... Nd6 {[%clk 0:01:58.4]} 16. Be3 {[%clk 0:01:23.8]} 16... Nf5 {[%clk
0:01:54.1]} 17. Bd2 {[%clk 0:01:04.8]} 17... h5 {[%clk 0:01:44.3]} 18. Bc3
{[%clk 0:01:03.7]} 18... Ncd4 {[%clk 0:01:41.5]} 19. Nxd4 {[%clk 0:00:57.8]}
19... Nxd4 {[%clk 0:01:36.7]} 20. a3 {[%clk 0:00:53.1]} 20... h4 {[%clk
0:01:18.6]} 21. Qd1 {[%clk 0:00:45.9]} 21... hxg3 {[%clk 0:01:18.5]} 22. hxg3
{[%clk 0:00:46.8]} 22... Qd6 {[%clk 0:01:18.6]} 23. Qd2 {[%clk 0:00:37.3]} 23...
Nb3 {[%clk 0:01:15.1]} 24. Qc2 {[%clk 0:00:33.8]} 24... Nd4 {[%clk 0:01:14.6]}
25. Qd2 {[%clk 0:00:33]} 25... Bf6 {[%clk 0:01:12.6]} 26. b4 {[%clk 0:00:30.5]}
26... axb4 {[%clk 0:01:12.5]} 27. axb4 {[%clk 0:00:31]} 27... Kg7 {[%clk
0:01:12.9]} 28. bxc5 {[%clk 0:00:29.7]} 28... bxc5 {[%clk 0:01:12.7]} 29. Rb7
{[%clk 0:00:29]} 29... Rb8 {[%clk 0:01:12.8]} 30. Reb1 {[%clk 0:00:26.3]} 30...
Rxb7 {[%clk 0:01:13.1]} 31. Rxb7 {[%clk 0:00:27.2]} 31... Rh8 {[%clk 0:01:13.8]}
32. Ba5 {[%clk 0:00:18.3]} 32... Nf5 {[%clk 0:01:05.2]} 33. Rb6 {[%clk
0:00:12.3]} 33... Qd4 {[%clk 0:01:02.8]} 34. Kf1 {[%clk 0:00:11.6]} 34... Rh2
{[%clk 0:01:00.9]} 35. Rb3 {[%clk 0:00:07.2]} 35... Qa1+ {[%clk 0:00:56.4]} 36.
Qe1 {[%clk 0:00:06.9]} 36... Qa2 {[%clk 0:00:52.6]} 37. Rb7 {[%clk 0:00:03.5]}
37... Bd4 {[%clk 0:00:33.5]} 38. Bc3 {[%clk 0:00:03.6]} 38... Nxg3+ {[%clk
0:00:18.6]} 39. Kg1 {[%clk 0:00:03.6]} 39... Rxg2+ {[%clk 0:00:19.3]} 40. Kxg2
{[%clk 0:00:03.7]} 40... Qa8 {[%clk 0:00:20]} 41. Bxd4+ {[%clk 0:00:02.4]} 41...
cxd4 {[%clk 0:00:20.9]} 42. fxg3 {[%clk 0:00:02.1]} 42... Qxb7+ {[%clk 0:00:21]}
43. Kf2 {[%clk 0:00:02.8]} 43... Qb2+ {[%clk 0:00:20.9]} 44. Kf3 {[%clk
0:00:02.5]} 44... Qc3 {[%clk 0:00:21.5]} 45. Qe5+ {[%clk 0:00:02.2]} 45... f6
{[%clk 0:00:20.7]} 46. Qe4 {[%clk 0:00:02.7]} 46... Kf7 {[%clk 0:00:19.1]} 47.
g4 {[%clk 0:00:03]} 47... f5 {[%clk 0:00:18]} 48. gxf5 {[%clk 0:00:03.4]} 48...
gxf5 {[%clk 0:00:18.9]} 49. Qe2 {[%clk 0:00:03.6]} 49... Ke7 {[%clk 0:00:18]}
50. Kf2 {[%clk 0:00:02.9]} 50... Qc1 {[%clk 0:00:18.4]} 51. Kf3 {[%clk
0:00:02.8]} 51... Qh1+ {[%clk 0:00:19.1]} 52. Kg3 {[%clk 0:00:02.5]} 52... Qg1+
{[%clk 0:00:19.6]} 53. Kf3 {[%clk 0:00:02.8]} 53... Qg4+ {[%clk 0:00:20.3]} 54.
Kf2 {[%clk 0:00:02.3]} 54... Qxe2+ {[%clk 0:00:21.2]} 55. Kxe2 {[%clk
0:00:02.8]} 55... Kd6 {[%clk 0:00:21.9]} 56. Kd2 {[%clk 0:00:02.9]} 56... Kc5
{[%clk 0:00:21.8]} 57. Kc2 {[%clk 0:00:03.2]} 57... Kb4 {[%clk 0:00:22.5]} 58.
Kb2 {[%clk 0:00:03.6]} 58... d6 {[%clk 0:00:22.9]} 59. Kc2 {[%clk 0:00:02]}
59... Ka3 {[%clk 0:00:23.6]} 60. Kd2 {[%clk 0:00:02.1]} 60... Kb2 {[%clk
0:00:24.3]} 0-1

[Event "Late-Titled-Tuesday-Blitz-June-04-2024"]
[Site "Chess.com"]
[Date "2024.06.04"]
[Round "2"]
[White "pavelalexandru07"]
[Black "dasatcu90"]
[Result "0-1"]
[WhiteElo "2459"]
[BlackElo "2242"]
[TimeControl "180+1"]
[EndTime "14:18:15 PDT"]
[Termination "dasatcu90 won by resignation"]

1. e4 {[%clk 0:03:00.9]} 1... c6 {[%clk 0:02:58.8]} 2. d4 {[%clk 0:03:00.7]}
2... d5 {[%clk 0:02:58]} 3. e5 {[%clk 0:03:01.2]} 3... Bf5 {[%clk 0:02:57.7]} 4.
Nd2 {[%clk 0:03:01.1]} 4... h5 {[%clk 0:02:56.7]} 5. Nb3 {[%clk 0:03:00.4]} 5...
e6 {[%clk 0:02:56.1]} 6. Be2 {[%clk 0:02:47.9]} 6... h4 {[%clk 0:02:47.6]} 7. h3
{[%clk 0:02:45.9]} 7... Nd7 {[%clk 0:02:45.9]} 8. Nf3 {[%clk 0:02:45.5]} 8...
Be4 {[%clk 0:02:20.1]} 9. O-O {[%clk 0:02:36.5]} 9... Bxf3 {[%clk 0:02:13.8]}
10. Bxf3 {[%clk 0:02:36.5]} 10... Nh6 {[%clk 0:02:11.3]} 11. a4 {[%clk
0:02:25.5]} 11... Nf5 {[%clk 0:02:05.3]} 12. a5 {[%clk 0:02:25.1]} 12... c5
{[%clk 0:02:04.4]} 13. c3 {[%clk 0:02:25]} 13... c4 {[%clk 0:02:04.1]} 14. Nd2
{[%clk 0:02:24.1]} 14... Be7 {[%clk 0:01:58.4]} 15. Re1 {[%clk 0:02:23.7]} 15...
Nb8 {[%clk 0:01:58]} 16. b3 {[%clk 0:02:06.5]} 16... cxb3 {[%clk 0:01:55.6]} 17.
Qxb3 {[%clk 0:02:06.2]} 17... Qc7 {[%clk 0:01:45.2]} 18. Bb2 {[%clk 0:01:54]}
18... Nc6 {[%clk 0:01:41.2]} 19. a6 {[%clk 0:01:51.3]} 19... bxa6 {[%clk
0:01:15.8]} 20. Rxa6 {[%clk 0:01:48.6]} 20... Rb8 {[%clk 0:01:14.5]} 21. Qa2
{[%clk 0:01:28.9]} 21... O-O {[%clk 0:01:10.2]} 22. Ba3 {[%clk 0:01:07.2]} 22...
Rb6 {[%clk 0:00:44.4]} 23. Bxe7 {[%clk 0:01:04.4]} 23... Qxe7 {[%clk 0:00:35.8]}
24. Rxb6 {[%clk 0:01:02.6]} 24... axb6 {[%clk 0:00:36.7]} 25. Rb1 {[%clk
0:00:59.7]} 25... Qc7 {[%clk 0:00:31.1]} 26. Qa6 {[%clk 0:00:56.8]} 26... Rb8
{[%clk 0:00:30.3]} 27. Bg4 {[%clk 0:00:52.2]} 27... Nfe7 {[%clk 0:00:25.5]} 28.
Nf3 {[%clk 0:00:49.8]} 28... Na5 {[%clk 0:00:25.4]} 29. Qd3 {[%clk 0:00:46.9]}
29... Qc4 {[%clk 0:00:20.9]} 30. Qxc4 {[%clk 0:00:46.9]} 30... Nxc4 {[%clk
0:00:20.8]} 31. Nxh4 {[%clk 0:00:46.9]} 31... b5 {[%clk 0:00:18.3]} 32. Be2
{[%clk 0:00:43.8]} 32... Nc6 {[%clk 0:00:17.8]} 33. Nf3 {[%clk 0:00:43.8]} 33...
Na3 {[%clk 0:00:13.3]} 34. Rb3 {[%clk 0:00:42.6]} 34... Nc4 {[%clk 0:00:11.6]}
35. Bd3 {[%clk 0:00:40]} 35... Kf8 {[%clk 0:00:08.8]} 36. Kf1 {[%clk 0:00:38.8]}
36... Ke7 {[%clk 0:00:09.4]} 37. Ke2 {[%clk 0:00:38.9]} 37... f6 {[%clk
0:00:10]} 38. exf6+ {[%clk 0:00:38.7]} 38... gxf6 {[%clk 0:00:10.8]} 39. Nd2
{[%clk 0:00:38.9]} 39... e5 {[%clk 0:00:10.5]} 40. dxe5 {[%clk 0:00:36.2]} 40...
fxe5 {[%clk 0:00:10.5]} 41. Bxc4 {[%clk 0:00:32.5]} 41... dxc4 {[%clk
0:00:10.7]} 42. Ra3 {[%clk 0:00:32.2]} 42... Kd6 {[%clk 0:00:10.6]} 43. Ra6
{[%clk 0:00:31.5]} 43... Kd5 {[%clk 0:00:10.7]} 44. Ra1 {[%clk 0:00:29.8]} 44...
b4 {[%clk 0:00:10.9]} 45. cxb4 {[%clk 0:00:29.1]} 45... Rxb4 {[%clk 0:00:11.4]}
46. Rc1 {[%clk 0:00:28.4]} 46... Na5 {[%clk 0:00:07.2]} 47. h4 {[%clk
0:00:26.2]} 47... Rb2 {[%clk 0:00:07.5]} 48. Ke1 {[%clk 0:00:23.5]} 48... Nb3
{[%clk 0:00:05.5]} 49. Nxc4 {[%clk 0:00:22.7]} 49... Ra2 {[%clk 0:00:01.6]} 50.
Ne3+ {[%clk 0:00:22.6]} 50... Ke4 {[%clk 0:00:01.2]} 51. h5 {[%clk 0:00:22.2]}
51... Nxc1 {[%clk 0:00:01.4]} 52. h6 {[%clk 0:00:20.9]} 52... Nd3+ {[%clk
0:00:02.1]} 53. Kf1 {[%clk 0:00:20.8]} 53... Rxf2+ {[%clk 0:00:01.9]} 54. Kg1
{[%clk 0:00:21.7]} 54... Kxe3 {[%clk 0:00:02.8]} 55. h7 {[%clk 0:00:21.9]} 55...
Rf8 {[%clk 0:00:02.8]} 56. g4 {[%clk 0:00:22.8]} 56... Rh8 {[%clk 0:00:03.6]}
57. Kg2 {[%clk 0:00:23.6]} 57... Rxh7 {[%clk 0:00:04.5]} 58. Kg3 {[%clk
0:00:24.4]} 58... Rg7 {[%clk 0:00:05.4]} 59. g5 {[%clk 0:00:25.1]} 59... Rxg5+
{[%clk 0:00:05.4]} 60. Kh4 {[%clk 0:00:26]} 60... e4 {[%clk 0:00:06.2]} 61. Kxg5
{[%clk 0:00:25.9]} 61... Kf3 {[%clk 0:00:06.5]} 62. Kf5 {[%clk 0:00:26.8]} 62...
e3 {[%clk 0:00:07.4]} 63. Ke6 {[%clk 0:00:27.2]} 63... e2 {[%clk 0:00:08.3]} 64.
Kd5 {[%clk 0:00:28.1]} 64... e1=Q {[%clk 0:00:08.5]} 65. Kc6 {[%clk 0:00:29]}
65... Qe3 {[%clk 0:00:08.9]} 66. Kb5 {[%clk 0:00:29.9]} 66... Nf2 {[%clk
0:00:09.6]} 67. Ka6 {[%clk 0:00:30.8]} 67... Ke2 {[%clk 0:00:10.2]} 68. Kb7
{[%clk 0:00:31.7]} 68... Kd2 {[%clk 0:00:11.1]} 69. Ka8 {[%clk 0:00:32.6]} 69...
Kc2 {[%clk 0:00:11.9]} 0-1

[Event "Late-Titled-Tuesday-Blitz-June-04-2024"]
[Site "Chess.com"]
[Date "2024.06.04"]
[Round "2"]
[White "arnoldpetra"]
[Black "JEIGOTH"]
[Result "0-1"]
[WhiteElo "2498"]
[BlackElo "2343"]
[TimeControl "180+1"]
[EndTime "14:18:16 PDT"]
[Termination "JEIGOTH won by resignation"]

1. d4 {[%clk 0:03:00.9]} 1... Nf6 {[%clk 0:02:55.6]} 2. c3 {[%clk 0:03:00.7]}
2... d5 {[%clk 0:02:48.4]} 3. Nf3 {[%clk 0:03:01.1]} 3... e6 {[%clk 0:02:47.9]}
4. Bf4 {[%clk 0:03:01.6]} 4... c5 {[%clk 0:02:45.5]} 5. e3 {[%clk 0:03:01.6]}
5... Nc6 {[%clk 0:02:45.4]} 6. Nbd2 {[%clk 0:03:01.6]} 6... Qb6 {[%clk 0:02:45]}
7. Qb3 {[%clk 0:03:01.7]} 7... c4 {[%clk 0:02:45.1]} 8. Qc2 {[%clk 0:03:01.7]}
8... Nh5 {[%clk 0:02:39.3]} 9. Bg3 {[%clk 0:02:59.7]} 9... Nxg3 {[%clk
0:02:37.5]} 10. hxg3 {[%clk 0:03:00.6]} 10... h6 {[%clk 0:02:35.4]} 11. b3
{[%clk 0:03:00.8]} 11... cxb3 {[%clk 0:02:30]} 12. axb3 {[%clk 0:03:01.7]} 12...
Be7 {[%clk 0:02:22.4]} 13. Be2 {[%clk 0:02:59.5]} 13... Qc7 {[%clk 0:02:15.9]}
14. O-O {[%clk 0:02:56]} 14... O-O {[%clk 0:02:15.8]} 15. c4 {[%clk 0:02:56.4]}
15... Nb4 {[%clk 0:02:09.3]} 16. Qc3 {[%clk 0:02:54.2]} 16... b6 {[%clk
0:02:06.9]} 17. Rfc1 {[%clk 0:02:52.5]} 17... Bb7 {[%clk 0:02:03.6]} 18. c5
{[%clk 0:02:52.3]} 18... bxc5 {[%clk 0:02:03.1]} 19. dxc5 {[%clk 0:02:51.1]}
19... Nc6 {[%clk 0:02:00.2]} 20. b4 {[%clk 0:02:49.7]} 20... a6 {[%clk
0:01:49.8]} 21. Rab1 {[%clk 0:02:34.3]} 21... Bf6 {[%clk 0:01:47.5]} 22. Nd4
{[%clk 0:02:33.7]} 22... e5 {[%clk 0:01:45.4]} 23. Nxc6 {[%clk 0:02:33.2]} 23...
Bxc6 {[%clk 0:01:46.3]} 24. Nb3 {[%clk 0:02:17.8]} 24... Bb5 {[%clk 0:01:30.4]}
25. Bxb5 {[%clk 0:02:17]} 25... axb5 {[%clk 0:01:31.3]} 26. Ra1 {[%clk
0:02:14.7]} 26... Qc6 {[%clk 0:01:14.2]} 27. Rxa8 {[%clk 0:02:12.7]} 27... Rxa8
{[%clk 0:01:14.6]} 28. Na5 {[%clk 0:02:05.2]} 28... Qc7 {[%clk 0:01:14.3]} 29.
c6 {[%clk 0:02:05.7]} 29... Ra6 {[%clk 0:01:10.2]} 30. Qc5 {[%clk 0:02:04.5]}
30... d4 {[%clk 0:01:08.2]} 31. Qxb5 {[%clk 0:02:03.2]} 31... Rb6 {[%clk
0:01:07.4]} 32. Qc5 {[%clk 0:01:45]} 32... dxe3 {[%clk 0:01:07.1]} 33. fxe3
{[%clk 0:01:37.6]} 33... Be7 {[%clk 0:01:04.6]} 34. Qd5 {[%clk 0:01:29.4]} 34...
Bxb4 {[%clk 0:01:00.7]} 35. Nb7 {[%clk 0:01:29.3]} 35... Rxb7 {[%clk 0:00:48.5]}
36. Rb1 {[%clk 0:01:01.7]} 36... Rb6 {[%clk 0:00:40.1]} 37. Qd7 {[%clk
0:00:59.5]} 37... Qxc6 {[%clk 0:00:14.2]} 38. Qxc6 {[%clk 0:00:58.6]} 38... Rxc6
{[%clk 0:00:15.1]} 39. Rxb4 {[%clk 0:00:58.7]} 39... Rc3 {[%clk 0:00:14.3]} 40.
Kf2 {[%clk 0:00:58.5]} 40... f6 {[%clk 0:00:14.2]} 41. g4 {[%clk 0:00:59]} 41...
Kh7 {[%clk 0:00:14.2]} 42. Kf3 {[%clk 0:00:59.4]} 42... Kg6 {[%clk 0:00:14.6]}
43. Rb7 {[%clk 0:00:59.3]} 43... Rc4 {[%clk 0:00:14.3]} 44. Rd7 {[%clk
0:00:58.2]} 44... Kh7 {[%clk 0:00:12.3]} 45. Re7 {[%clk 0:00:55.4]} 45... Kg6
{[%clk 0:00:11]} 46. Rd7 {[%clk 0:00:55.1]} 46... Ra4 {[%clk 0:00:11.4]} 47. Rb7
{[%clk 0:00:54.6]} 47... Ra8 {[%clk 0:00:05.8]} 48. Ke4 {[%clk 0:00:54.2]} 48...
Ra2 {[%clk 0:00:04.6]} 49. g3 {[%clk 0:00:54]} 49... Rg2 {[%clk 0:00:03.4]} 50.
Kf3 {[%clk 0:00:54.1]} 50... Rg1 {[%clk 0:00:03.9]} 51. g5 {[%clk 0:00:54.5]}
51... hxg5 {[%clk 0:00:03.1]} 52. Kg4 {[%clk 0:00:54.2]} 52... Ra1 {[%clk
0:00:03.6]} 53. Rb4 {[%clk 0:00:53.3]} 53... Ra7 {[%clk 0:00:03]} 54. Rb5 {[%clk
0:00:53.5]} 54... f5+ {[%clk 0:00:02.4]} 55. Kf3 {[%clk 0:00:53.2]} 55... Re7
{[%clk 0:00:02.6]} 56. Rb6+ {[%clk 0:00:53.1]} 56... Kf7 {[%clk 0:00:03.2]} 57.
Rc6 {[%clk 0:00:53.4]} 57... Re6 {[%clk 0:00:03.2]} 58. Rc7+ {[%clk 0:00:53.4]}
58... Kf6 {[%clk 0:00:03.8]} 59. Rc8 {[%clk 0:00:54.3]} 59... g4+ {[%clk
0:00:03.1]} 60. Ke2 {[%clk 0:00:54.2]} 60... Ra6 {[%clk 0:00:03.7]} 61. Rf8+
{[%clk 0:00:54.2]} 61... Kg5 {[%clk 0:00:03.8]} 62. Re8 {[%clk 0:00:54.4]} 62...
e4 {[%clk 0:00:02.2]} 63. Rg8 {[%clk 0:00:53.9]} 63... Ra2+ {[%clk 0:00:02.1]}
64. Kf1 {[%clk 0:00:54.1]} 64... g6 {[%clk 0:00:02.9]} 65. Rf8 {[%clk
0:00:54.2]} 65... Ra3 {[%clk 0:00:03.2]} 66. Kf2 {[%clk 0:00:54.2]} 66... Ra2+
{[%clk 0:00:03.8]} 67. Kf1 {[%clk 0:00:54.7]} 67... Rd2 {[%clk 0:00:04.3]} 68.
Ke1 {[%clk 0:00:54.4]} 68... Rg2 {[%clk 0:00:04.2]} 69. Kf1 {[%clk 0:00:54.7]}
69... Rxg3 {[%clk 0:00:04.7]} 70. Kf2 {[%clk 0:00:55.5]} 70... Rf3+ {[%clk
0:00:05.6]} 71. Ke2 {[%clk 0:00:55.9]} 71... g3 {[%clk 0:00:05.6]} 72. Rc8
{[%clk 0:00:55.3]} 72... g2 {[%clk 0:00:06.1]} 73. Rc1 {[%clk 0:00:56.2]} 73...
Rf1 {[%clk 0:00:06.2]} 74. Rxf1 {[%clk 0:00:56.3]} 74... gxf1=Q+ {[%clk
0:00:07.1]} 75. Kxf1 {[%clk 0:00:56.9]} 75... Kg4 {[%clk 0:00:07.6]} 76. Kf2
{[%clk 0:00:57.8]} 76... f4 {[%clk 0:00:08]} 77. exf4 {[%clk 0:00:58.3]} 77...
Kxf4 {[%clk 0:00:08.9]} 78. Ke2 {[%clk 0:00:58.8]} 78... e3 {[%clk 0:00:09.5]}
79. Ke1 {[%clk 0:00:58.8]} 79... Kf3 {[%clk 0:00:09.7]} 80. Kf1 {[%clk
0:00:59.7]} 80... e2+ {[%clk 0:00:09.2]} 81. Ke1 {[%clk 0:01:00]} 81... g5
{[%clk 0:00:08.4]} 82. Kd2 {[%clk 0:01:00.2]} 82... Kf2 {[%clk 0:00:09.3]} 83.
Kd3 {[%clk 0:01:00.6]} 83... e1=Q {[%clk 0:00:10.2]} 84. Kd4 {[%clk 0:01:01.4]}
84... Qe3+ {[%clk 0:00:10.3]} 85. Kd5 {[%clk 0:01:02.3]} 85... g4 {[%clk
0:00:10.4]} 86. Kd6 {[%clk 0:01:03.2]} 86... g3 {[%clk 0:00:11]} 87. Kd7 {[%clk
0:01:04.1]} 87... g2 {[%clk 0:00:11.3]} 88. Kd6 {[%clk 0:01:05]} 0-1

[Event "Late-Titled-Tuesday-Blitz-June-04-2024"]
[Site "Chess.com"]
[Date "2024.06.04"]
[Round "2"]
[White "cristiano78"]
[Black "slidingknight2775"]
[Result "0-1"]
[WhiteElo "2240"]
[BlackElo "2659"]
[TimeControl "180+1"]
[EndTime "14:18:17 PDT"]
[Termination "slidingknight2775 won on time"]

1. d4 {[%clk 0:02:51.6]} 1... Nf6 {[%clk 0:02:59.7]} 2. c4 {[%clk 0:02:51.1]}
2... e6 {[%clk 0:02:58.7]} 3. Nf3 {[%clk 0:02:50.4]} 3... d5 {[%clk 0:02:57.9]}
4. Nc3 {[%clk 0:02:50.5]} 4... c6 {[%clk 0:02:58.2]} 5. Bg5 {[%clk 0:02:50.2]}
5... h6 {[%clk 0:02:58.1]} 6. Bxf6 {[%clk 0:02:50]} 6... Qxf6 {[%clk 0:02:59]}
7. Rc1 {[%clk 0:02:49.9]} 7... g6 {[%clk 0:02:58.8]} 8. e4 {[%clk 0:02:49]} 8...
Qd8 {[%clk 0:02:51.3]} 9. cxd5 {[%clk 0:02:47.7]} 9... exd5 {[%clk 0:02:49.3]}
10. exd5 {[%clk 0:02:47.1]} 10... cxd5 {[%clk 0:02:48.4]} 11. Bb5+ {[%clk
0:02:46.5]} 11... Nc6 {[%clk 0:02:48.1]} 12. Ne5 {[%clk 0:02:44.8]} 12... Bd7
{[%clk 0:02:17]} 13. Nxd5 {[%clk 0:02:32.3]} 13... Bg7 {[%clk 0:01:47.1]} 14.
O-O {[%clk 0:02:12.4]} 14... O-O {[%clk 0:01:43.8]} 15. Bxc6 {[%clk 0:01:49.2]}
15... Bxc6 {[%clk 0:01:41.1]} 16. Nxc6 {[%clk 0:01:45.2]} 16... bxc6 {[%clk
0:01:41]} 17. Nb4 {[%clk 0:01:42.9]} 17... Qxd4 {[%clk 0:01:38.5]} 18. Nxc6
{[%clk 0:01:40.3]} 18... Qxb2 {[%clk 0:01:13.8]} 19. Rc2 {[%clk 0:01:27.2]}
19... Qa3 {[%clk 0:01:09.9]} 20. Qd5 {[%clk 0:01:22.4]} 20... Rae8 {[%clk
0:01:04.1]} 21. Rd1 {[%clk 0:01:16.5]} 21... Kh7 {[%clk 0:00:46.4]} 22. g3
{[%clk 0:01:14.3]} 22... Rc8 {[%clk 0:00:42.2]} 23. Rd3 {[%clk 0:01:10.7]} 23...
Qa4 {[%clk 0:00:37.5]} 24. Rb3 {[%clk 0:00:54.3]} 24... Qg4 {[%clk 0:00:26.2]}
25. Kg2 {[%clk 0:00:47.7]} 25... Rc7 {[%clk 0:00:20.6]} 26. Rc4 {[%clk
0:00:42.2]} 26... Qc8 {[%clk 0:00:17.3]} 27. Nxa7 {[%clk 0:00:27]} 27... Qd7
{[%clk 0:00:15.6]} 28. Qxd7 {[%clk 0:00:25.1]} 28... Rxd7 {[%clk 0:00:16.5]} 29.
Nb5 {[%clk 0:00:23.8]} 29... Ra8 {[%clk 0:00:16.3]} 30. a4 {[%clk 0:00:23.5]}
30... Rd2 {[%clk 0:00:12.8]} 31. Rf3 {[%clk 0:00:21.2]} 31... f5 {[%clk
0:00:08.8]} 32. Nc7 {[%clk 0:00:15.6]} 32... Ra7 {[%clk 0:00:03.9]} 33. Ne6
{[%clk 0:00:14.1]} 33... Bf6 {[%clk 0:00:03.5]} 34. h4 {[%clk 0:00:10.5]} 34...
h5 {[%clk 0:00:03.7]} 35. Rb3 {[%clk 0:00:09.5]} 35... Ra2 {[%clk 0:00:03.3]}
36. Nf4 {[%clk 0:00:06.3]} 36... R2xa4 {[%clk 0:00:02.1]} 37. Rxa4 {[%clk
0:00:06.2]} 37... Rxa4 {[%clk 0:00:03]} 38. Rb7+ {[%clk 0:00:05.5]} 38... Kh6
{[%clk 0:00:03.6]} 39. Rb6 {[%clk 0:00:05.3]} 39... Rxf4 {[%clk 0:00:03.2]} 40.
gxf4 {[%clk 0:00:05.1]} 40... Bxh4 {[%clk 0:00:03.9]} 41. Kf3 {[%clk 0:00:05.3]}
41... Kg7 {[%clk 0:00:03.5]} 42. Rb7+ {[%clk 0:00:05.3]} 42... Kh6 {[%clk
0:00:04]} 43. Rd7 {[%clk 0:00:04.2]} 43... Bf6 {[%clk 0:00:04.1]} 44. Rd6 {[%clk
0:00:03.9]} 44... Bh4 {[%clk 0:00:04.1]} 45. Kg2 {[%clk 0:00:03]} 45... Be7
{[%clk 0:00:04.2]} 46. Re6 {[%clk 0:00:03]} 46... Bd8 {[%clk 0:00:04.7]} 47. Kg3
{[%clk 0:00:02.1]} 47... Bc7 {[%clk 0:00:04.9]} 48. Re7 {[%clk 0:00:01.5]} 48...
Bb8 {[%clk 0:00:05.2]} 49. Re8 {[%clk 0:00:01.5]} 49... Bd6 {[%clk 0:00:05.5]}
0-1

[Event "Late-Titled-Tuesday-Blitz-June-04-2024"]
[Site "Chess.com"]
[Date "2024.06.04"]
[Round "2"]
[White "MikeSailer"]
[Black "Jahonas"]
[Result "0-1"]
[WhiteElo "2127"]
[BlackElo "2450"]
[TimeControl "180+1"]
[EndTime "14:18:20 PDT"]
[Termination "Jahonas won on time"]

1. d4 {[%clk 0:02:59.7]} 1... c6 {[%clk 0:03:00.4]} 2. Nf3 {[%clk 0:02:53.5]}
2... d5 {[%clk 0:03:00.2]} 3. g3 {[%clk 0:02:47.6]} 3... Bf5 {[%clk 0:02:58.5]}
4. Bg2 {[%clk 0:02:48.1]} 4... h6 {[%clk 0:02:57.9]} 5. O-O {[%clk 0:02:46.3]}
5... e6 {[%clk 0:02:57.6]} 6. c4 {[%clk 0:02:46.9]} 6... Nf6 {[%clk 0:02:56.6]}
7. Bf4 {[%clk 0:02:38]} 7... Bd6 {[%clk 0:02:55.4]} 8. Ne5 {[%clk 0:02:37.5]}
8... dxc4 {[%clk 0:02:46.8]} 9. Nxc4 {[%clk 0:02:35.4]} 9... Bxf4 {[%clk
0:02:46.1]} 10. gxf4 {[%clk 0:02:33.3]} 10... O-O {[%clk 0:02:41]} 11. Nc3
{[%clk 0:02:31.9]} 11... Nd5 {[%clk 0:02:35.7]} 12. e3 {[%clk 0:02:18.3]} 12...
Nd7 {[%clk 0:02:33.6]} 13. Nd6 {[%clk 0:02:13.4]} 13... Nxc3 {[%clk 0:02:28.4]}
14. bxc3 {[%clk 0:02:13.2]} 14... Qc7 {[%clk 0:02:23]} 15. Nxf5 {[%clk
0:02:10.6]} 15... exf5 {[%clk 0:02:22.7]} 16. Qc2 {[%clk 0:02:08]} 16... g6
{[%clk 0:02:22.4]} 17. a4 {[%clk 0:01:57.8]} 17... Rac8 {[%clk 0:02:18.3]} 18.
a5 {[%clk 0:01:56.7]} 18... Nf6 {[%clk 0:02:16.8]} 19. c4 {[%clk 0:01:54.7]}
19... Rfe8 {[%clk 0:02:10.3]} 20. Rfb1 {[%clk 0:01:53.2]} 20... Ne4 {[%clk
0:01:59.1]} 21. Rb3 {[%clk 0:01:36.5]} 21... Rb8 {[%clk 0:01:57.1]} 22. c5
{[%clk 0:01:30.8]} 22... Re7 {[%clk 0:01:51.8]} 23. Qa2 {[%clk 0:01:10.5]} 23...
Kh7 {[%clk 0:01:45.6]} 24. Rab1 {[%clk 0:01:09.7]} 24... a6 {[%clk 0:01:29.1]}
25. Bf1 {[%clk 0:00:46.6]} 25... g5 {[%clk 0:01:27.4]} 26. fxg5 {[%clk
0:00:41.2]} 26... hxg5 {[%clk 0:01:25.9]} 27. Bxa6 {[%clk 0:00:40.7]} 27... Qd8
{[%clk 0:01:03.5]} 28. Bd3 {[%clk 0:00:28.2]} 28... Ra8 {[%clk 0:00:50.1]} 29.
Bxe4 {[%clk 0:00:22.5]} 29... fxe4 {[%clk 0:00:44.8]} 30. Rxb7 {[%clk
0:00:21.9]} 30... Rxa5 {[%clk 0:00:45]} 31. Qxa5 {[%clk 0:00:14.6]} 31... Qxa5
{[%clk 0:00:42.7]} 32. Rxe7 {[%clk 0:00:14.2]} 32... Qa2 {[%clk 0:00:42.1]} 33.
Rbb7 {[%clk 0:00:12.2]} 33... Kg6 {[%clk 0:00:40.7]} 34. Rxf7 {[%clk 0:00:11.9]}
34... Qe2 {[%clk 0:00:38.9]} 35. h3 {[%clk 0:00:10.6]} 35... Qd1+ {[%clk
0:00:38.6]} 36. Kg2 {[%clk 0:00:09.8]} 36... g4 {[%clk 0:00:37.3]} 37. Rg7+
{[%clk 0:00:08.6]} 37... Kf6 {[%clk 0:00:37.7]} 38. Rxg4 {[%clk 0:00:06.1]}
38... Qf3+ {[%clk 0:00:37.1]} 39. Kg1 {[%clk 0:00:05.8]} 39... Qxh3 {[%clk
0:00:36.9]} 40. Rf4+ {[%clk 0:00:05.6]} 40... Ke6 {[%clk 0:00:36.9]} 41. Rbf7
{[%clk 0:00:05.6]} 41... Kd5 {[%clk 0:00:35.3]} 42. R7f5+ {[%clk 0:00:04.6]}
42... Kc4 {[%clk 0:00:35.2]} 43. Rf6 {[%clk 0:00:05]} 43... Kd3 {[%clk
0:00:35.3]} 44. d5 {[%clk 0:00:04.2]} 44... cxd5 {[%clk 0:00:34.1]} 45. c6
{[%clk 0:00:04.6]} 45... Qh7 {[%clk 0:00:34.2]} 46. Rf7 {[%clk 0:00:04.8]} 46...
Qg6+ {[%clk 0:00:34.2]} 47. Kf1 {[%clk 0:00:05.1]} 47... Qxc6 {[%clk 0:00:34.2]}
48. R4f6 {[%clk 0:00:04.5]} 48... Qc1+ {[%clk 0:00:34.1]} 49. Kg2 {[%clk
0:00:05]} 49... Qd1 {[%clk 0:00:34.4]} 50. Rf4 {[%clk 0:00:05]} 50... Qh5 {[%clk
0:00:33.3]} 51. R4f5 {[%clk 0:00:05]} 51... Qg4+ {[%clk 0:00:32.7]} 52. Kf1
{[%clk 0:00:05.3]} 52... Qd1+ {[%clk 0:00:32.4]} 53. Kg2 {[%clk 0:00:06.1]}
53... Qg4+ {[%clk 0:00:32.6]} 54. Kh2 {[%clk 0:00:06.1]} 54... d4 {[%clk
0:00:32.2]} 55. exd4 {[%clk 0:00:05.6]} 55... Qh4+ {[%clk 0:00:31.4]} 56. Kg2
{[%clk 0:00:05.9]} 56... Qg4+ {[%clk 0:00:31.6]} 57. Kf1 {[%clk 0:00:05.8]}
57... Qh3+ {[%clk 0:00:31]} 58. Kg1 {[%clk 0:00:06]} 58... Qg4+ {[%clk
0:00:30.7]} 59. Kf1 {[%clk 0:00:05.2]} 59... Kxd4 {[%clk 0:00:30.8]} 60. Rf4
{[%clk 0:00:03.7]} 60... Qh3+ {[%clk 0:00:29.7]} 61. Kg1 {[%clk 0:00:04.1]}
61... Kd3 {[%clk 0:00:28.4]} 62. Rd7+ {[%clk 0:00:03]} 62... Qxd7 {[%clk
0:00:26.5]} 0-1